bitfinex/quotes_BTCUSD_20251011
["timestamp","ask_amount","ask_price","bid_price","bid_amount"]
[1760145471738,1.08003613,112020.0,112010.0,6.23849025]
[1760145471982,1.08003613,112020.0,112010.0,6.22451557]
[1760145472558,1.10239885,112020.0,112010.0,6.22451557]
[1760145472902,1.08003613,112020.0,112010.0,6.22451557]
[1760145473704,1.05612355,112020.0,112010.0,6.22451557]
[1760145474110,0.5538191,112020.0,112010.0,6.22451557]
[1760145474315,1.03032399,112020.0,112010.0,6.22451557]
[1760145474906,1.03032399,112020.0,112010.0,6.21054083]
[1760145475670,1.05443921,112020.0,112010.0,6.21054083]
[1760145475899,0.57793432,112020.0,112010.0,6.21054083]
[1760145476028,1.08023877,112020.0,112010.0,6.21054083]
[1760145476599,1.05443921,112020.0,112010.0,6.21054083]
[1760145477182,1.03032399,112020.0,112010.0,6.21054083]
[1760145479041,0.34948,112020.0,112010.0,6.21054083]
[1760145479240,0.51174445,112020.0,112010.0,6.21054083]
[1760145479445,0.69028399,112020.0,112010.0,6.21054083]
[1760145479663,0.69042399,112020.0,112010.0,6.21054083]
[1760145479866,1.03042399,112020.0,112010.0,6.21054083]
[1760145480541,0.55223476,112020.0,112010.0,6.21054083]
[1760145480762,1.08033877,112020.0,112010.0,6.21054083]
[1760145480966,1.10270149,112020.0,112010.0,6.21054083]
[1760145481165,1.08033877,112020.0,112010.0,6.21054083]
[1760145481563,1.08033877,112020.0,112010.0,5.85294292]
[1760145481564,1.12507995,112020.0,112010.0,5.85294292]
[1760145481802,1.14744267,112020.0,112010.0,5.85294292]
[1760145482009,1.12507995,112020.0,112010.0,5.85294292]
[1760145482237,1.12607995,112020.0,112010.0,5.85294292]
[1760145482474,1.08033877,112020.0,112010.0,5.85294292]
[1760145482686,1.05453921,112020.0,112010.0,5.85294292]
[1760145482852,1.03042399,112020.0,112010.0,5.85294292]
[1760145483245,0.52811954,112020.0,112010.0,5.85294292]
[1760145483456,1.03042399,112020.0,112010.0,5.85294292]
[1760145483858,1.03192475,112020.0,112010.0,5.85294292]
[1760145484308,0.85338521,112020.0,112010.0,5.85294292]
[1760145484703,0.85324521,112020.0,112010.0,6.0314984]
[1760145484896,0.35094076,112020.0,112010.0,5.85294292]
[1760145485097,0.00150076,112020.0,112010.0,6.1406384]
[1760145486277,0.00150076,112020.0,112010.0,6.2406184]
[1760145486899,0.00150076,112020.0,112010.0,6.2416184]
[1760145487931,0.34150076,112020.0,112010.0,6.1416384]
[1760145488753,0.34150076,112020.0,112010.0,6.2408484]
[1760145488963,0.00150076,112020.0,112010.0,6.2408484]
[1760145489365,0.00126001,112020.0,112010.0,6.2408484]
[1760145489978,0.00126001,112020.0,112010.0,6.26584839]
[1760145490431,0.00126001,112020.0,112010.0,6.28978627]
[1760145490605,0.00126001,112020.0,112010.0,6.26584839]
[1760145491676,0.05,112050.0,112040.0,0.17850767]
[1760145491875,0.58557629,112090.0,112070.0,0.17845659]
[1760145492098,0.05605,112080.0,112060.0,0.23446616]
[1760145492379,0.39605,112080.0,112070.0,0.17845989]
[1760145492587,0.89835445,112080.0,112070.0,0.17845989]
[1760145493438,0.89928445,112080.0,112070.0,0.001]
[1760145493855,1.07772841,112080.0,112070.0,0.001]
[1760145494064,0.34,112080.0,112070.0,0.29246989]
[1760145494277,0.34,112080.0,112070.0,0.39167989]
[1760145494495,0.34,112080.0,112070.0,0.17945989]
[1760145494496,0.39368,112080.0,112070.0,0.17945989]
[1760145494749,0.89743445,112080.0,112070.0,0.001]
[1760145495308,0.89743445,112080.0,112070.0,0.29246989]
[1760145495309,0.34,112080.0,112070.0,0.29246989]
[1760145495965,0.01299146,112090.0,112070.0,0.29246989]
[1760145496121,0.00015146,112090.0,112080.0,0.32542366]
[1760145496333,0.00015146,112090.0,112080.0,0.32473396]
[1760145496529,0.00015146,112090.0,112080.0,0.39066396]
[1760145496807,0.01382146,112090.0,112080.0,0.29145396]
[1760145497133,0.01396146,112090.0,112080.0,0.18337517]
[1760145497334,0.01396146,112090.0,112080.0,0.17817863]
[1760145497559,0.01449146,112090.0,112080.0,0.17817863]
[1760145497760,0.01449146,112090.0,112070.0,0.22653989]
[1760145497962,0.5329208,112090.0,112080.0,0.00363757]
[1760145498124,1.2032664,112090.0,112030.0,0.05600618]
[1760145498327,0.51847534,112070.0,112040.0,0.17850726]
[1760145498522,0.03696,112060.0,112040.0,0.23556837]
[1760145498936,0.03696,112060.0,112040.0,0.23451305]
[1760145499172,0.0495,112050.0,112040.0,0.23451305]
[1760145499536,0.03746,112060.0,112040.0,0.23451305]
[1760145499537,0.03696,112060.0,112050.0,0.1793708]
[1760145499804,0.35443,112080.0,112060.0,0.17846303]
[1760145500012,0.35443,112080.0,112070.0,0.17881304]
[1760145500318,0.35508149,112080.0,112070.0,0.00501568]
[1760145500636,0.58068367,112080.0,112070.0,0.00501568]
[1760145500829,0.57882631,112080.0,112070.0,0.00501568]
[1760145501163,0.57696893,112080.0,112070.0,0.00501568]
[1760145501384,0.57511155,112080.0,112070.0,0.00501568]
[1760145501799,1.23653575,112080.0,112070.0,0.00501568]
[1760145501976,0.57325417,112080.0,112060.0,0.00308312]
[1760145502180,0.04211,112070.0,112060.0,0.00566504]
[1760145502397,0.57424417,112080.0,112060.0,0.23121977]
[1760145502398,0.05580021,112080.0,112060.0,0.23121977]
[1760145502569,0.00781,112070.0,112060.0,0.00308312]
[1760145502778,0.00781,112070.0,112060.0,0.18010554]
[1760145502981,0.05530021,112080.0,112070.0,0.17845989]
[1760145503214,0.05530021,112080.0,112070.0,0.29146989]
[1760145503432,0.05530021,112080.0,112070.0,0.29417316]
[1760145503633,0.06311021,112080.0,112070.0,0.18059368]
[1760145503989,0.06311021,112080.0,112070.0,0.17845989]
[1760145504203,0.06311021,112080.0,112060.0,0.22555581]
[1760145504411,0.06311021,112080.0,112070.0,0.18149418]
[1760145504635,0.06311021,112080.0,112070.0,0.17845989]
[1760145505065,0.06311021,112080.0,112070.0,0.1814989]
[1760145505271,0.06311021,112080.0,112070.0,0.2945089]
[1760145505272,0.05530021,112080.0,112070.0,0.2945089]
[1760145505506,0.05530021,112080.0,112070.0,0.29146989]
[1760145505717,0.06311021,112080.0,112070.0,0.17845989]
[1760145505934,0.06311021,112080.0,112070.0,0.18144802]
[1760145506138,0.06311021,112080.0,112070.0,0.18103879]
[1760145506346,0.06311021,112080.0,112050.0,0.33370631]
[1760145506347,0.10488021,112080.0,112050.0,0.23449631]
[1760145506556,0.03696,112060.0,112050.0,0.18741631]
[1760145506763,0.38511,112060.0,112040.0,0.23451305]
[1760145506984,0.60501769,112060.0,112030.0,0.23451636]
[1760145507176,0.0407,112050.0,112030.0,0.17852278]
[1760145507373,0.3543,112040.0,112020.0,0.05600697]
[1760145507634,0.57324797,112040.0,112010.0,6.22101208]
[1760145507843,0.38754421,112040.0,112020.0,0.17853944]
[1760145507994,0.34710421,112040.0,112030.0,0.00157615]
[1760145508204,0.52561188,112040.0,112020.0,0.04708]
[1760145508412,0.52561188,112040.0,112030.0,0.001]
[1760145508413,1.18703608,112040.0,112030.0,0.001]
[1760145508654,1.21672762,112040.0,112030.0,0.00015118]
[1760145508953,1.24832762,112040.0,112030.0,0.0027644]
[1760145509162,1.24832762,112040.0,112030.0,0.00015118]
[1760145509374,1.24665548,112040.0,112030.0,0.00015118]
[1760145509529,0.58523128,112040.0,112030.0,0.00015118]
[1760145509942,0.40672361,112040.0,112030.0,0.00015118]
[1760145510151,0.37512361,112040.0,112030.0,0.00015118]
[1760145510533,0.40505361,112040.0,112030.0,0.00015118]
[1760145510749,0.57428888,112040.0,112030.0,0.00015118]
[1760145511010,0.57352492,112040.0,112030.0,0.00015118]
[1760145511413,0.36508725,112040.0,112030.0,0.00015118]
[1760145511821,0.56999492,112040.0,112030.0,0.00015118]
[1760145512062,0.56959259,112040.0,112030.0,0.00015118]
[1760145512462,1.23101679,112040.0,112030.0,0.00015118]
[1760145512757,1.63101679,112040.0,112030.0,0.00015118]
[1760145513161,1.23101679,112040.0,112030.0,0.00015118]
[1760145513602,1.63101679,112040.0,112030.0,0.00015118]
[1760145513808,0.96959259,112040.0,112030.0,0.00015118]
[1760145514002,1.63101679,112040.0,112030.0,0.00015118]
[1760145514204,1.61547227,112040.0,112030.0,0.00015118]
[1760145514527,1.61547227,112040.0,112030.0,0.00912564]
[1760145514800,0.95404807,112040.0,112030.0,0.00015118]
[1760145514939,1.21547227,112040.0,112030.0,0.00893666]
[1760145515141,0.55404807,112040.0,112030.0,0.00893666]
[1760145515344,1.21547227,112040.0,112030.0,0.00605996]
[1760145515593,1.61547227,112040.0,112030.0,0.00605996]
[1760145516145,1.61547227,112040.0,112030.0,0.00311946]
[1760145516480,1.00335607,112040.0,112030.0,0.00311946]
[1760145516682,1.61547227,112040.0,112030.0,0.00183836]
[1760145516885,0.95404807,112040.0,112030.0,0.00183836]
[1760145517086,1.61547227,112040.0,112030.0,0.00183836]
[1760145517303,1.61547227,112040.0,112030.0,0.00111951]
[1760145517646,1.64309436,112040.0,112030.0,0.00101277]
[1760145517961,1.64309436,112040.0,112030.0,0.00088861]
[1760145517962,1.32555396,112040.0,112030.0,0.00088861]
[1760145518117,1.32555396,112040.0,112030.0,0.00015118]
[1760145518279,1.32555396,112040.0,112030.0,0.00500831]
[1760145518686,0.89793187,112040.0,112030.0,0.00015118]
[1760145519472,1.29793187,112040.0,112030.0,0.00015118]
[1760145519992,1.63793187,112040.0,112030.0,0.00081459]
[1760145520237,1.63793187,112040.0,112030.0,0.00015118]
[1760145520624,1.23793187,112040.0,112030.0,0.00015118]
[1760145521560,1.63793187,112040.0,112030.0,0.00015118]
[1760145522175,1.66555396,112040.0,112030.0,0.00015118]
[1760145523826,1.66555396,112040.0,112030.0,0.00048358]
[1760145524266,1.66555396,112040.0,112030.0,0.00015118]
[1760145525420,0.91853954,112020.0,112010.0,5.91606192]
[1760145525611,1.64997721,112020.0,112010.0,5.91606192]
[1760145526053,1.67289182,112020.0,112010.0,5.91606192]
[1760145526503,1.031319,112020.0,112010.0,5.91606192]
[1760145526743,1.81774318,112020.0,112010.0,5.2422609]
[1760145527179,1.81774318,112020.0,112010.0,4.89023005]
[1760145527339,1.81774318,112020.0,112010.0,4.7767341]
[1760145527538,1.81774318,112020.0,112010.0,4.68878303]
[1760145527739,1.81774318,112020.0,112010.0,4.35577725]
[1760145527940,1.81774318,112020.0,112010.0,4.24753638]
[1760145528141,1.81774318,112020.0,112010.0,3.93232632]
[1760145528384,1.81774318,112020.0,112010.0,3.753947]
[1760145528539,1.13131899,112020.0,112010.0,3.753947]
[1760145528741,1.6927432,112020.0,112010.0,3.753947]
[1760145529243,1.79274319,112020.0,112010.0,3.75766168]
[1760145529853,1.64626973,112020.0,112010.0,3.75766168]
[1760145530085,1.66544539,112020.0,112010.0,3.75583312]
[1760145530289,1.76544538,112020.0,112010.0,3.75583312]
[1760145530495,1.78629676,112020.0,112010.0,3.75560665]
[1760145530639,1.78629676,112020.0,112010.0,3.35213779]
[1760145531078,1.78629676,112020.0,112010.0,3.35116909]
[1760145531672,1.78629676,112020.0,112010.0,3.35076191]
[1760145531873,1.76709432,112020.0,112010.0,3.35076191]
[1760145532061,1.74320649,112020.0,112010.0,3.35076191]
[1760145532509,1.68629677,112020.0,112010.0,3.35047814]
[1760145532834,1.78629676,112020.0,112010.0,3.34824073]
[1760145532949,1.81129675,112020.0,112010.0,2.76378472]
[1760145533148,1.15454034,112020.0,112010.0,2.58187395]
[1760145533455,1.81596454,112020.0,112010.0,2.33531502]
[1760145533710,1.81496454,112020.0,112010.0,2.30115976]
[1760145533918,1.81496454,112020.0,112010.0,2.06075862]
[1760145534125,1.81129675,112020.0,112010.0,2.06075862]
[1760145534456,1.81029675,112020.0,112010.0,1.61909514]
[1760145534628,1.81129675,112020.0,112010.0,1.34058615]
[1760145534810,1.81129675,112020.0,112010.0,1.12094326]
[1760145535024,1.81029675,112020.0,112010.0,0.99959582]
[1760145535224,1.81029675,112020.0,112010.0,0.75809808]
[1760145535424,1.81029675,112020.0,112010.0,0.53331082]
[1760145536360,1.81029675,112020.0,112000.0,5.06322499]
[1760145536361,0.61855547,112010.0,112000.0,5.06322499]
[1760145536562,1.36595888,112010.0,112000.0,5.06322499]
[1760145537378,1.38726824,112010.0,112000.0,4.49916398]
[1760145537644,1.38726824,112010.0,112000.0,4.40080241]
[1760145538050,0.72684404,112010.0,112000.0,4.40080241]
[1760145538199,1.38826824,112010.0,112000.0,4.40080241]
[1760145539246,1.38826824,112010.0,112000.0,3.87434911]
[1760145539553,1.41326823,112010.0,112000.0,3.52804561]
[1760145539772,1.41326823,112010.0,112000.0,3.47780251]
[1760145540003,1.41326823,112010.0,112000.0,3.21976553]
[1760145540140,1.41326823,112010.0,112000.0,3.02093946]
[1760145540347,1.41226823,112010.0,112000.0,2.88665295]
[1760145540542,1.19707899,112010.0,112000.0,2.68334273]
[1760145540873,1.19707899,112010.0,112000.0,2.62987227]
[1760145540874,1.37463447,112010.0,112000.0,2.62987227]
[1760145541230,1.30847374,112010.0,112000.0,2.63028161]
[1760145541432,1.30947374,112010.0,112000.0,2.19409661]
[1760145541633,1.33127444,112010.0,112000.0,2.00909347]
[1760145541750,1.35627443,112010.0,112000.0,1.85328032]
[1760145541953,1.35627443,112010.0,112000.0,1.84953925]
[1760145542160,1.35880443,112010.0,112000.0,1.84953925]
[1760145542377,1.35880443,112010.0,112000.0,0.20859222]
[1760145542378,0.76602497,112010.0,112000.0,0.20859222]
[1760145542598,1.38370996,112010.0,112000.0,0.20837059]
[1760145542805,1.3834788,112010.0,112000.0,0.20837059]
[1760145543042,1.33667811,112010.0,112000.0,0.20837059]
[1760145543272,1.36161121,112010.0,112000.0,0.20837059]
[1760145543738,0.51858737,111990.0,111980.0,0.0002]
[1760145543971,1.60641157,111990.0,111980.0,0.0002]
[1760145544213,1.65633157,111990.0,111980.0,0.0002]
[1760145544465,0.51846714,111940.0,111930.0,0.0002]
[1760145544710,0.36622,111940.0,111930.0,0.0002]
[1760145544932,0.40846,111940.0,111930.0,0.0002]
[1760145545184,0.41632,111940.0,111930.0,0.03813181]
[1760145545603,0.41647121,111940.0,111930.0,0.0002]
[1760145545823,1.25656255,111940.0,111930.0,0.0002]
[1760145546700,1.07789541,111940.0,111930.0,0.03813181]
[1760145547324,0.41647121,111940.0,111930.0,0.03813181]
[1760145547531,0.38408221,111940.0,111930.0,0.03813181]
[1760145547928,0.38364019,111940.0,111930.0,0.03813181]
[1760145548337,0.38364019,111940.0,111930.0,0.0002]
[1760145548547,0.56230733,111940.0,111930.0,0.03813181]
[1760145550263,1.22373153,111940.0,111930.0,0.03813181]
[1760145550616,0.35289799,111940.0,111930.0,0.03813181]
[1760145551019,0.34503799,111940.0,111930.0,0.03813181]
[1760145551362,0.06715913,111940.0,111930.0,0.03813181]
[1760145551719,0.07501913,111940.0,111930.0,0.03813181]
[1760145551925,0.06715913,111940.0,111930.0,0.03813181]
[1760145552124,0.02491913,111940.0,111930.0,0.33453758]
[1760145552469,0.02491913,111940.0,111930.0,0.14448181]
[1760145552709,0.04989913,111940.0,111930.0,0.03813181]
[1760145552871,0.25351627,111940.0,111930.0,0.0002]
[1760145553075,1.07034718,111940.0,111930.0,0.0002]
[1760145553489,0.34,111940.0,111930.0,0.03813181]
[1760145553694,0.51866714,111940.0,111930.0,0.03813181]
[1760145554018,0.34,111940.0,111930.0,0.03813181]
[1760145554222,1.18009134,111940.0,111930.0,0.03813181]
[1760145554509,1.18009134,111940.0,111930.0,0.0002]
[1760145554758,1.18009134,111940.0,111930.0,0.03813181]
[1760145555420,0.51866714,111940.0,111930.0,0.03813181]
[1760145556523,1.18009134,111940.0,111930.0,0.03813181]
[1760145556746,0.51866714,111940.0,111930.0,0.03813181]
[1760145556951,0.51631487,111940.0,111930.0,0.03813181]
[1760145557158,0.51631487,111940.0,111930.0,0.00740277]
[1760145557806,0.1786831,111930.0,111920.0,1e-08]
[1760145558194,0.1786831,111930.0,111920.0,0.00740278]
[1760145558440,0.51631487,111940.0,111930.0,0.00740277]
[1760145559444,1.0200526,111940.0,111930.0,0.00740277]
[1760145559651,0.51631487,111940.0,111930.0,0.00740277]
[1760145560023,1.0200526,111940.0,111930.0,0.00740277]
[1760145560656,0.51631487,111940.0,111930.0,0.00740277]
[1760145561327,0.51631487,111940.0,111920.0,0.00740278]
[1760145561328,0.1786831,111930.0,111920.0,0.00740278]
[1760145561530,0.9186831,111930.0,111920.0,1e-08]
[1760145562681,0.93980282,111930.0,111920.0,1e-08]
[1760145562888,0.96450544,111930.0,111920.0,1e-08]
[1760145563114,0.96450544,111930.0,111900.0,0.004]
[1760145563115,0.91871503,111910.0,111900.0,1e-08]
[1760145563319,0.94140149,111910.0,111900.0,1e-08]
[1760145563604,0.54141746,111900.0,111890.0,1e-08]
[1760145564792,0.54141746,111900.0,111890.0,0.00050571]
[1760145566645,0.91876296,111880.0,111870.0,0.04810816]
[1760145566907,0.94405561,111880.0,111870.0,0.04810816]
[1760145567147,0.51877893,111870.0,111860.0,0.0028]
[1760145567321,0.54356703,111870.0,111860.0,0.0028]
[1760145568977,0.54356703,111870.0,111860.0,0.01020277]
[1760145569502,0.3647881,111870.0,111860.0,0.01020277]
[1760145569826,0.34,111870.0,111860.0,0.01020277]
[1760145570101,0.51877893,111870.0,111860.0,0.01020277]
[1760145570403,0.54141817,111870.0,111860.0,0.01020277]
[1760145570602,0.20141817,111870.0,111860.0,0.01020277]
[1760145571405,0.20141817,111870.0,111860.0,0.0028]
[1760145572503,0.54141817,111870.0,111860.0,0.0028]
[1760145572850,0.91879492,111860.0,111850.0,1e-08]
[1760145573050,0.93998208,111860.0,111850.0,1e-08]
[1760145575016,0.91882689,111840.0,111830.0,0.00340278]
[1760145575221,0.17884288,111830.0,111820.0,0.00348278]
[1760145575379,0.21116994,111830.0,111820.0,0.00348278]
[1760145575805,0.03232706,111830.0,111820.0,0.00348278]
[1760145576122,0.00968182,111830.0,111820.0,0.00721094]
[1760145576328,0.1885247,111830.0,111820.0,0.00348278]
[1760145576763,0.21167418,111830.0,111820.0,0.00348278]
[1760145577335,0.21167418,111830.0,111820.0,8e-05]
[1760145577528,0.21167418,111830.0,111820.0,0.00348278]
[1760145578017,0.1885247,111830.0,111820.0,0.00348278]
[1760145578848,0.91882689,111840.0,111830.0,0.00340278]
[1760145579051,0.91882689,111840.0,111830.0,0.00355399]
[1760145579816,0.91882689,111840.0,111830.0,0.00015121]
[1760145580018,0.94197637,111840.0,111830.0,0.00015121]
[1760145580255,0.94197637,111840.0,111830.0,0.00355399]
[1760145581441,0.91882689,111840.0,111830.0,0.00355399]
[1760145581844,0.34,111840.0,111830.0,0.00355399]
[1760145582240,0.34364601,111830.0,111820.0,0.04678]
[1760145582404,0.34379716,111830.0,111820.0,0.11016]
[1760145582599,0.34379716,111830.0,111820.0,0.20196]
[1760145582917,0.00379716,111830.0,111820.0,0.38081888]
[1760145583339,0.35125202,111860.0,111830.0,0.19157448]
[1760145583544,0.530049,111860.0,111840.0,0.0467]
[1760145583703,0.34,111850.0,111840.0,0.0467]
[1760145584094,0.34,111850.0,111840.0,0.38070689]
[1760145584291,0.35125202,111860.0,111840.0,0.38070689]
[1760145584501,0.35125202,111860.0,111850.0,0.14452437]
[1760145584721,0.35125202,111860.0,111850.0,0.20188]
[1760145584920,0.35125202,111860.0,111850.0,0.3806909]
[1760145585726,0.35125202,111860.0,111850.0,0.11008]
[1760145585935,0.35125202,111860.0,111850.0,0.20188]
[1760145586135,0.35125202,111860.0,111850.0,0.3806909]
[1760145588411,0.35125202,111860.0,111850.0,0.40569089]
[1760145588545,0.25125202,111860.0,111850.0,0.3645253]
[1760145589332,0.25125202,111860.0,111850.0,0.46452529]
[1760145591965,0.02491,111920.0,111900.0,0.17872146]
[1760145592286,0.02475,111930.0,111910.0,0.11278109]
[1760145592608,0.36475,111930.0,111910.0,0.11278109]
[1760145592882,0.02475,111930.0,111920.0,0.04592]
[1760145593101,0.02516,111940.0,111920.0,0.20583]
[1760145593387,0.60313332,111940.0,111910.0,0.04592]
[1760145593547,0.60313332,111940.0,111910.0,0.14235]
[1760145593743,0.42,111930.0,111910.0,0.14235]
[1760145594044,0.42,111930.0,111920.0,0.04592]
[1760145594254,0.42,111930.0,111920.0,0.20583]
[1760145594437,0.34,111930.0,111920.0,0.20583]
[1760145595385,0.36492,111930.0,111920.0,0.04592]
[1760145595609,0.36492,111930.0,111910.0,0.04592]
[1760145595739,0.36492,111930.0,111920.0,0.04592]
[1760145597117,0.36492,111930.0,111920.0,0.04561271]
[1760145597424,0.36492,111930.0,111920.0,0.10909271]
[1760145597635,0.36492,111930.0,111920.0,0.04561271]
[1760145597843,0.07472,111930.0,111900.0,0.11635184]
[1760145598039,0.04142,111910.0,111900.0,0.11635184]
[1760145598347,0.04142,111910.0,111900.0,0.17983184]
[1760145598540,0.0415,111920.0,111900.0,0.27626184]
[1760145598711,0.0415,111920.0,111900.0,0.1094]
[1760145598915,0.0415,111920.0,111900.0,0.20583]
[1760145599316,0.02492,111930.0,111910.0,0.14704846]
[1760145599520,0.02492,111930.0,111920.0,0.1094]
[1760145600569,0.02492,111930.0,111920.0,0.11327025]
[1760145600925,0.00015163,111940.0,111920.0,0.38839527]
[1760145601141,0.00015163,111940.0,111930.0,0.3210331]
[1760145601500,0.00015163,111940.0,111930.0,0.3845131]
[1760145602346,0.00015163,111940.0,111930.0,0.40951309]
[1760145603500,0.00015163,111940.0,111930.0,0.50951308]
[1760145605653,0.04159,112010.0,111980.0,0.18752558]
[1760145605859,0.00050508,112010.0,112000.0,0.1094]
[1760145606073,0.00050508,112010.0,112000.0,0.38440142]
[1760145606233,0.00050508,112010.0,112000.0,0.40940141]
[1760145606745,0.00050508,112010.0,112000.0,0.23082999]
[1760145606951,0.00050508,112010.0,112000.0,0.38440142]
[1760145607354,0.00050508,112010.0,112000.0,0.40940141]
[1760145610241,0.00050508,112010.0,112000.0,0.23082999]
[1760145610438,0.00050508,112010.0,112000.0,0.40940141]
[1760145610648,0.42324379,112060.0,112030.0,0.18743446]
[1760145610649,0.04199,112060.0,112030.0,0.18743446]
[1760145610785,0.04199,112060.0,112050.0,0.10913]
[1760145610786,0.04214151,112060.0,112050.0,0.10913]
[1760145610988,0.00055151,112060.0,112050.0,0.20368]
[1760145611211,0.00055151,112060.0,112050.0,0.38217174]
[1760145611436,0.00055151,112060.0,112050.0,0.20368]
[1760145613320,0.00055151,112060.0,112050.0,0.38217174]
[1760145614593,0.00055151,112060.0,112050.0,0.40717173]
[1760145617534,0.00055151,112060.0,112050.0,0.50717172]
[1760145617698,0.00055151,112060.0,112050.0,0.84717172]
[1760145618716,0.00055151,112060.0,112050.0,0.50717172]
[1760145618920,0.00055151,112060.0,112050.0,0.38217174]
[1760145619156,0.00055151,112060.0,112050.0,0.40717173]
[1760145620583,0.00055151,112060.0,112050.0,0.57760356]
[1760145620733,0.00055151,112060.0,112050.0,0.91760356]
[1760145620989,0.00055151,112060.0,112050.0,0.50717172]
[1760145621154,0.00055151,112060.0,112050.0,0.40717173]
[1760145621540,0.00055151,112060.0,112050.0,0.38217174]
[1760145621744,0.08055151,112060.0,112050.0,0.20368]
[1760145621946,0.08055151,112060.0,112050.0,0.38217174]
[1760145622622,0.08055151,112060.0,112050.0,0.40717173]
[1760145623624,0.08055151,112060.0,112040.0,0.04645]
[1760145623798,0.02773,112050.0,112030.0,0.04645]
[1760145624001,0.10117,112050.0,112020.0,0.04645]
[1760145624315,0.08055151,112060.0,112040.0,0.28763735]
[1760145624513,0.10828151,112060.0,112040.0,0.10913]
[1760145624732,0.10828151,112060.0,112040.0,0.28763717]
[1760145624916,0.10828151,112060.0,112050.0,0.17849174]
[1760145625114,0.08055151,112060.0,112050.0,0.30475611]
[1760145625352,0.08055151,112060.0,112050.0,0.28762174]
[1760145626000,0.08055151,112060.0,112050.0,0.20368]
[1760145626204,0.10828151,112060.0,112050.0,0.04645]
[1760145626703,0.10828151,112060.0,112040.0,0.04645]
[1760145627244,0.0495,112050.0,112020.0,0.04645]
[1760145627400,0.36419,112030.0,112000.0,0.04645]
[1760145627600,0.02419,112030.0,112010.0,0.1292478]
[1760145628146,0.04031,112040.0,112020.0,0.10913]
[1760145628305,0.04031,112040.0,112030.0,0.01236375]
[1760145628575,0.36419,112050.0,112030.0,0.39456735]
[1760145628729,0.36419,112050.0,112030.0,0.3822036]
[1760145629132,0.36419,112050.0,112030.0,0.10913]
[1760145629332,0.04031,112040.0,112020.0,0.23391467]
[1760145629550,0.04031,112040.0,112020.0,0.22498649]
[1760145629813,0.04031,112040.0,112030.0,0.04645]
[1760145629931,0.04031,112040.0,112020.0,0.141]
[1760145630132,0.04031,112040.0,112020.0,0.22498909]
[1760145630733,0.22074886,112050.0,112010.0,0.04645]
[1760145630981,0.02571624,112040.0,112010.0,0.04645]
[1760145631184,0.00386,112020.0,112000.0,0.04645]
[1760145631437,0.00386,112020.0,111990.0,0.30439556]
[1760145631629,0.00386,112020.0,112000.0,0.04645]
[1760145632408,0.00015142,112020.0,112010.0,0.01329559]
[1760145632605,0.18256981,112050.0,112010.0,0.21697559]
[1760145632739,0.18256981,112050.0,112010.0,0.20368]
[1760145632951,0.00242,112050.0,112020.0,0.04645]
[1760145633163,0.4204,112060.0,112030.0,0.04645]
[1760145633359,0.42297131,112060.0,112040.0,0.01785076]
[1760145633566,0.41895485,112060.0,112040.0,0.01785076]
[1760145633767,0.07895485,112060.0,112050.0,0.04645]
[1760145633970,0.07895485,112060.0,112050.0,0.28762174]
[1760145634175,0.07895485,112060.0,112050.0,0.38217174]
[1760145636293,0.00015131,112060.0,112050.0,0.38217174]
[1760145636498,0.00015131,112060.0,112050.0,0.40717173]
[1760145637969,0.00015131,112060.0,112050.0,0.40917173]
[1760145640689,0.58348572,112140.0,112090.0,0.17842804]
[1760145640690,0.0004,112130.0,112090.0,0.17842804]
[1760145640893,0.00090458,112130.0,112100.0,0.04536]
[1760145641109,0.00090458,112130.0,112100.0,0.33260269]
[1760145641304,0.00090458,112130.0,112110.0,0.04536]
[1760145641524,0.00090458,112130.0,112120.0,0.0087353]
[1760145641873,0.34501458,112130.0,112120.0,0.01586533]
[1760145642219,0.33001458,112130.0,112120.0,0.01586533]
[1760145642427,0.00505821,112140.0,112120.0,0.12197533]
[1760145642604,0.00520948,112140.0,112120.0,0.12197533]
[1760145642804,0.00055127,112140.0,112120.0,0.15614533]
[1760145643150,0.00055127,112140.0,112120.0,0.05622533]
[1760145643359,0.00055127,112140.0,112120.0,0.04536]
[1760145644018,0.00055127,112140.0,112110.0,0.04536]
[1760145644216,0.34055127,112140.0,112110.0,0.04536]
[1760145644629,0.34901127,112140.0,112110.0,0.03536]
[1760145644825,0.01353,112120.0,112100.0,0.04536]
[1760145645234,0.34846,112110.0,112070.0,0.05428299]
[1760145645431,0.34846,112110.0,112080.0,0.07043184]
[1760145645800,0.3371854,112110.0,112080.0,0.07043184]
[1760145645934,0.3371854,112110.0,112070.0,0.23274246]
[1760145645935,0.01353,112090.0,112070.0,0.04536]
[1760145646141,0.01353,112090.0,112060.0,0.30318876]
[1760145646351,0.01353,112090.0,112060.0,0.40310876]
[1760145646890,0.02199,112090.0,112060.0,0.12471563]
[1760145647106,0.02199,112090.0,112060.0,0.12522021]
[1760145647296,0.01353,112090.0,112060.0,0.40361545]
[1760145647547,0.01353,112090.0,112070.0,0.04536]
[1760145647953,0.34,112080.0,112070.0,0.001]
[1760145648285,0.36199,112080.0,112070.0,0.001]
[1760145648493,0.36199,112080.0,112060.0,0.00050458]
[1760145648701,0.01353,112080.0,112070.0,0.001]
[1760145649138,0.01353,112080.0,112060.0,0.00050458]
[1760145649339,0.00846,112070.0,112060.0,0.00050458]
[1760145649543,0.52691989,112070.0,112060.0,0.00050458]
[1760145649781,0.54353894,112070.0,112060.0,0.00050458]
[1760145649974,0.54252562,112070.0,112060.0,0.00050458]
[1760145650806,0.51680938,112070.0,112060.0,0.00050458]
[1760145651213,0.33834949,112070.0,112060.0,0.00150458]
[1760145651394,0.54252562,112070.0,112060.0,0.00150458]
[1760145651642,0.51680938,112070.0,112060.0,0.00050458]
[1760145651860,0.33834949,112070.0,112060.0,0.00050458]
[1760145654001,0.569242,112070.0,112060.0,0.00050458]
[1760145654254,0.54252562,112070.0,112060.0,0.00050458]
[1760145655213,1.11528798,112070.0,112060.0,0.00050458]
[1760145655464,1.0675256,112070.0,112060.0,0.00050458]
[1760145655950,0.34,112020.0,112010.0,0.07043184]
[1760145656171,0.51853954,112020.0,112010.0,0.07058315]
[1760145656856,0.54425578,112020.0,112010.0,0.07058315]
[1760145657307,0.36571624,112020.0,112010.0,0.07058315]
[1760145657536,0.54425578,112020.0,112010.0,0.00015131]
[1760145657751,0.36571624,112020.0,112010.0,0.00015131]
[1760145657958,0.54425578,112020.0,112010.0,0.00015131]
[1760145658163,0.54425578,112020.0,112010.0,0.00115131]
[1760145658575,0.57097216,112020.0,112010.0,0.00115131]
[1760145658995,0.56925577,112020.0,112010.0,0.00115131]
[1760145659210,0.56925577,112020.0,112010.0,0.00015131]
[1760145659211,0.54425578,112020.0,112010.0,0.00015131]
[1760145660708,0.34,112020.0,112010.0,0.00015131]
[1760145660918,0.51853954,112020.0,112010.0,0.00015131]
[1760145661309,0.54425578,112020.0,112010.0,0.00015131]